fUST/lending_fUST_20240508
["ID","MTS","AMOUNT","RATE_DAILY","PERIOD"]
[326624677,1715158246716,-500.0,0.00019452,2]
[326624678,1715158246727,-501.12045441,0.00019452,2]
[326624679,1715158246736,-588.35,0.00019452,2]
[326624680,1715158246745,-500.0,0.00019452,2]
[326624681,1715158246755,-216.01,0.00019452,2]
[326624682,1715158246764,-500.0,0.00019452,2]
[326624683,1715158246773,-390.96,0.00019452,2]
[326624684,1715158246782,-519.32334351,0.00019452,2]
[326624685,1715158246792,-212.10109152,0.00019452,2]
[326624686,1715158246802,-500.0,0.00019452,2]
[326624687,1715158246811,-462.16627727,0.00019452,2]
[326624688,1715158246925,-37.83372273,0.00019452,2]
[326624689,1715158246934,-4591.04,0.00019452,2]
[326624690,1715158246944,-500.0,0.00019452,2]
[326624691,1715158246953,-200.84,0.00019452,2]
[326624692,1715158246962,-715.62,0.00019452,2]
[326624693,1715158246972,-500.0,0.00019452,2]
[326624694,1715158246981,-989.93,0.00019452,2]
[326624695,1715158246990,-242.53660978,0.00019452,2]
[326624696,1715158247001,-500.0,0.00019452,2]
[326624697,1715158247011,-500.0,0.00019452,2]
[326624698,1715158247022,-753.3,0.00019452,2]
[326624699,1715158247032,-357.15,0.00019452,2]
[326624700,1715158247042,-500.0,0.00019452,2]
[326624701,1715158247052,-287.81014775,0.00019452,2]
[326624702,1715158247064,-506.04985225,0.00019452,2]
[326624703,1715158247074,-434.57,0.00019452,2]
[326624704,1715158247083,-228.13,0.00019452,2]
[326624705,1715158247092,-511.87,0.00019452,2]
[326624706,1715158247104,-500.0,0.00019452,2]
[326624707,1715158247116,-500.0,0.00019452,2]
[326624708,1715158247128,-500.0,0.00019452,2]
[326624709,1715158247142,-500.0,0.00019452,2]
[326624710,1715158247155,-500.0,0.00019452,2]
[326624711,1715158247167,-500.0,0.00019452,2]
[326624712,1715158247178,-367.61,0.00019452,2]
[326624713,1715158247188,-500.0,0.00019452,2]
[326624714,1715158247201,-456.73,0.00019452,2]
[326624715,1715158247212,-580.94,0.00019452,2]
[326624716,1715158247225,-500.0,0.00019502,2]
[326624717,1715158247236,-500.0,0.00019726,2]
[326624718,1715158247248,-208.99,0.00019726,2]
[326624719,1715158247261,-500.0,0.00019726,2]
[326624720,1715158247273,-186.88,0.00019726,2]
[326624721,1715158247284,-500.0,0.00019726,2]
[326624722,1715158247298,-255.35818195,0.00019726,2]
[326624723,1715158247311,-500.0,0.00019726,2]
[326624724,1715158247323,-377.6900704,0.00019726,2]
[326624725,1715158247334,-500.0,0.00019726,2]
[326624726,1715158247345,-500.0,0.00019726,2]
[326624727,1715158247356,-500.0,0.00019726,2]
[326624728,1715158247368,-655.21,0.00019726,2]
[326624729,1715158247381,-238.71,0.00019726,2]
[326624730,1715158247394,-500.0,0.00019726,2]
[326624731,1715158247407,-500.0,0.00019726,2]
[326624732,1715158247418,-383.33,0.00019726,2]
[326624733,1715158247429,-3356.41,0.00019726,2]
[326624734,1715158247441,-500.0,0.00019726,2]
[326624735,1715158247451,-500.0,0.00019726,2]
[326624736,1715158247461,-500.0,0.00019726,2]
[326624737,1715158247475,-500.0,0.00019726,2]
[326624738,1715158247486,-500.0,0.00019726,2]
[326624739,1715158247497,-500.0,0.00019726,2]
[326624740,1715158247509,-500.0,0.00019726,2]
[326624741,1715158247520,-227.35,0.00019726,2]
[326624742,1715158247533,-4591.04,0.00019726,2]
[326624743,1715158247549,-211.11,0.00019726,2]
[326624744,1715158247561,-715.62,0.00019726,2]
[326624745,1715158247574,-500.0,0.00019726,2]
[326624746,1715158247587,-989.93,0.00019726,2]
[326624747,1715158247600,-215.87,0.00019726,2]
[326624748,1715158247612,-500.0,0.00019726,2]
[326624749,1715158247626,-753.3,0.00019726,2]
[326624750,1715158247637,-500.0,0.00019726,2]
[326624751,1715158247647,-793.86,0.00019726,2]
[326624752,1715158247658,-500.0,0.00019726,2]
[326624753,1715158247668,-500.0,0.00019726,2]
[326624754,1715158247679,-533.81,0.00019726,2]
[326624755,1715158247691,-222.28415474,0.00019726,2]
[326624756,1715158247703,-500.0,0.00019726,2]
[326624757,1715158247715,-500.0,0.00019726,2]
[326624758,1715158247728,-500.0,0.00019726,2]
[326624759,1715158247739,-500.0,0.00019874,2]
[326624760,1715158247749,-475.32221455,0.00019996,2]
[326624761,1715158247760,-500.0,0.00019996,2]
[326624762,1715158247771,-1222.58516105,0.00019997,2]
[326624763,1715158247787,-6724.34378602,0.00019997,2]
[326624764,1715158247799,-1599.82,0.00019998,2]
[326624765,1715158247810,-500.0,0.00019999,2]
[326624766,1715158247820,-500.0,0.00019999,2]
[326624767,1715158247832,-500.0,0.00019999,2]
[326624768,1715158247842,-414.45272179,0.00019999,2]
[326624769,1715158247854,-1599.82,0.00019999,2]
[326624770,1715158247864,-1599.82,0.00019999,2]
[326624771,1715158247875,-1599.82,0.00019999,2]
[326624772,1715158247886,-1599.82,0.00019999,2]
[326624773,1715158247898,-500.0,0.00019999,2]
[326624774,1715158247909,-500.0,0.00019999,2]
[326624775,1715158247920,-500.0,0.00019999,2]
[326624776,1715158247930,-500.0,0.00019999,2]
[326624777,1715158247941,-500.0,0.00019999,2]
[326624778,1715158247952,-5467.6138057,0.0002,2]
[326624779,1715158247962,-80000.0,0.0002,2]
[326624780,1715158247973,-67507.49755129,0.0002,2]
[326624781,1715158247984,-242.02466203,0.0002,2]
[326624782,1715158247995,-330.43257549,0.0002,2]
[326624783,1715158248006,-400.0,0.0002,2]
[326624784,1715158248016,-154.62889066,0.0002,2]
[326624785,1715158248028,-500.0,0.0002,2]
[326624786,1715158248039,-186.62,0.0002,2]
[326624787,1715158248051,-500.0,0.0002,2]
[326624788,1715158248062,-220.67,0.0002,2]
[326624789,1715158248074,-200.0,0.0002,2]
[326624790,1715158248085,-205.53437038,0.0002,2]
[326624791,1715158248096,-500.0,0.0002,2]
[326624792,1715158248108,-500.0,0.0002,2]
[326624793,1715158248119,-500.0,0.0002,2]
[326624794,1715158248130,-655.21,0.0002,2]
[326624795,1715158248141,-500.0,0.0002,2]
[326624796,1715158248153,-500.0,0.0002,2]
[326624797,1715158248164,-3356.41,0.0002,2]
[326624798,1715158248176,-500.0,0.0002,2]
[326624799,1715158248187,-500.0,0.0002,2]
[326624800,1715158248198,-340.72,0.0002,2]
[326624801,1715158248208,-500.0,0.0002,2]
[326624802,1715158248220,-533.32,0.0002,2]
[326624803,1715158248232,-500.0,0.0002,2]
[326624804,1715158248244,-500.0,0.0002,2]
[326624805,1715158248255,-2353.08830333,0.0002,2]
[326624806,1715158248269,-2237.95169667,0.0002,2]
[326624807,1715158248280,-715.62,0.0002,2]
[326624808,1715158248290,-543.02,0.0002,2]
[326624809,1715158248300,-989.93,0.0002,2]
[326624810,1715158248309,-500.0,0.0002,2]
[326624811,1715158248318,-753.3,0.0002,2]
[326624812,1715158248327,-449.21983893,0.0002,2]
[326624813,1715158248339,-78.77016107,0.0002,2]
[326624814,1715158248348,-793.86,0.0002,2]
[326624815,1715158248357,-500.0,0.0002,2]
[326624816,1715158248366,-619.73,0.0002,2]
[326624817,1715158248375,-500.0,0.0002,2]
[326624818,1715158248384,-500.0,0.0002,2]
[326624819,1715158248393,-586.38,0.0002,2]
[326624820,1715158248404,-7972.02123506,0.0002,2]
[326624821,1715158248417,-12031.85308913,0.0002,2]
[326624822,1715158248429,-60157.32755844,0.0002,2]
[326624823,1715158249059,-6798.25966869,0.00019078,2]
[326624849,1715158255406,-816.2716486,0.00019077,2]
[326624851,1715158255416,-48756.74033131,0.00019078,2]
[326624853,1715158255426,-379.96231687,0.00019177,2]
[326624855,1715158255435,-500.69540508,0.00019178,2]
[326624857,1715158255445,-500.30666069,0.00019178,2]
[326624859,1715158255455,-501.20537319,0.00019178,2]
[326624860,1715158255464,-500.4803247,0.00019178,2]
[326624862,1715158255473,-502.42571405,0.00019178,2]
[326624864,1715158255484,-43212.97536258,0.0002,2]
[326624866,1715158255493,-163.20360463,0.0002,2]
[326624868,1715158255503,-177.74788995,0.0002,2]
[326624870,1715158255512,-528.1,0.00020273,2]
[326624872,1715158255522,-500.0,0.00020273,2]
[326624874,1715158255531,-500.0,0.00020273,2]
[326624876,1715158255546,-383.45,0.00020273,2]
[326624878,1715158255556,-655.21,0.00020273,2]
[326624880,1715158255565,-500.0,0.00020273,2]
[326624882,1715158255575,-500.0,0.00020273,2]
[326624883,1715158255584,-3356.41,0.00020273,2]
[326624885,1715158255594,-500.0,0.00020273,2]
[326624887,1715158255603,-500.0,0.00020273,2]
[326624889,1715158255613,-500.0,0.00020273,2]
[326624891,1715158255631,-500.0,0.00020273,2]
[326624893,1715158255643,-500.0,0.00020273,2]
[326624895,1715158255654,-4591.04,0.00020273,2]
[326624897,1715158255665,-715.62,0.00020273,2]
[326624899,1715158255676,-989.93,0.00020273,2]
[326624900,1715158255686,-500.0,0.00020273,2]
[326624902,1715158255695,-753.3,0.00020273,2]
[326624903,1715158255705,-793.86,0.00020273,2]
[326624904,1715158255715,-500.0,0.00020273,2]
[326624905,1715158255724,-500.0,0.00020273,2]
[326624906,1715158255736,-500.0,0.00020273,2]
[326624907,1715158255746,-1599.82,0.00020545,2]
[326624908,1715158255755,-500.0,0.00020546,2]
[326624909,1715158255764,-500.0,0.00020547,2]
[326624910,1715158255774,-500.0,0.00020547,2]
[326624911,1715158255784,-655.21,0.00020547,2]
[326624912,1715158255794,-500.0,0.00020547,2]
[326624913,1715158255803,-500.0,0.00020547,2]
[326624914,1715158255813,-3356.41,0.00020547,2]
[326624915,1715158255823,-500.0,0.00020547,2]
[326624916,1715158255832,-500.0,0.00020547,2]
[326624917,1715158255842,-500.0,0.00020547,2]
[326624918,1715158255852,-206.33,0.00020547,2]
[326624919,1715158255863,-500.0,0.00020547,2]
[326624920,1715158255873,-4591.04,0.00020547,2]
[326624921,1715158255883,-715.62,0.00020547,2]
[326624922,1715158255892,-989.93,0.00020547,2]
[326624923,1715158255902,-500.0,0.00020547,2]
[326624924,1715158255912,-753.3,0.00020547,2]
[326624925,1715158255921,-793.86,0.00020547,2]
[326624926,1715158255931,-500.0,0.00020547,2]
[326624927,1715158255942,-500.0,0.00020547,2]
[326624928,1715158255952,-500.0,0.00020547,2]
[326624929,1715158255962,-500.0,0.00020821,2]
[326624930,1715158255971,-500.0,0.00020821,2]
[326624931,1715158255982,-655.21,0.00020821,2]
[326624932,1715158255991,-500.0,0.00020821,2]
[326624933,1715158256000,-500.0,0.00020821,2]
[326624934,1715158256010,-3356.41,0.00020821,2]
[326624935,1715158256019,-500.0,0.00020821,2]
[326624936,1715158256030,-500.0,0.00020821,2]
[326624937,1715158256039,-500.0,0.00020821,2]
[326624938,1715158256049,-500.0,0.00020821,2]
[326624939,1715158256059,-4591.04,0.00020821,2]
[326624940,1715158256068,-715.62,0.00020821,2]
[326624941,1715158256077,-989.93,0.00020821,2]
[326624942,1715158256087,-500.0,0.00020821,2]
[326624943,1715158256097,-753.3,0.00020821,2]
[326624944,1715158256106,-793.86,0.00020821,2]
[326624945,1715158256115,-500.0,0.00020821,2]
[326624946,1715158256125,-500.0,0.00020821,2]
[326624947,1715158256135,-500.0,0.00020821,2]
[326624948,1715158256144,-494.0,0.00021037,2]
[326624949,1715158256154,-1599.82,0.00021094,2]
[326624950,1715158256164,-500.0,0.00021095,2]
[326624951,1715158256174,-500.0,0.00021095,2]
[326624952,1715158256184,-655.21,0.00021095,2]
[326624953,1715158256193,-500.0,0.00021095,2]
[326624954,1715158256203,-500.0,0.00021095,2]
[326624955,1715158256213,-3356.41,0.00021095,2]
[326624956,1715158256222,-500.0,0.00021095,2]
[326624957,1715158256232,-500.0,0.00021095,2]
[326624958,1715158256242,-500.0,0.00021095,2]
[326624959,1715158256252,-500.0,0.00021095,2]
[326624960,1715158256261,-4591.04,0.00021095,2]
[326624961,1715158256271,-715.62,0.00021095,2]
[326624962,1715158256281,-989.93,0.00021095,2]
[326624963,1715158256290,-500.0,0.00021095,2]
[326624964,1715158256300,-753.3,0.00021095,2]
[326624965,1715158256310,-793.86,0.00021095,2]
[326624966,1715158256320,-500.0,0.00021095,2]
[326624967,1715158256329,-307.72105293,0.00021095,2]
[326624968,1715158256340,-500.0,0.00021095,2]
[326624969,1715158256349,-500.0,0.00021099,2]
[326624970,1715158256359,-500.0,0.00021369,2]
[326624971,1715158256368,-500.0,0.00021369,2]
[326624972,1715158256378,-655.21,0.00021369,2]
[326624973,1715158256387,-500.0,0.00021369,2]
[326624974,1715158256397,-500.0,0.00021369,2]
[326624975,1715158256407,-3356.41,0.00021369,2]
[326624976,1715158256417,-168.8,0.00021369,2]
[326624977,1715158256427,-500.0,0.00021369,2]
[326624978,1715158256437,-500.0,0.00021369,2]
[326624979,1715158256447,-523.09170554,0.00021369,2]
[326624980,1715158256457,-4591.04,0.00021369,2]
[326624981,1715158256466,-715.62,0.00021369,2]
[326624982,1715158256475,-989.93,0.00021369,2]
[326624983,1715158256486,-500.0,0.00021369,2]
[326624984,1715158256495,-753.3,0.00021369,2]
[326624985,1715158256504,-793.86,0.00021369,2]
[326624986,1715158256514,-500.0,0.00021369,2]
[326624987,1715158256524,-500.0,0.00021369,2]
[326624988,1715158256533,-2341.24543761,0.00021433,7]
[326624989,1715158256548,-5600.0,0.000215,6]
[326624990,1715158256558,-160.0,0.000216,2]
[326624991,1715158256568,-1599.82,0.00021642,2]
[326624992,1715158256579,-500.0,0.00021642,2]
[326624993,1715158256588,-500.0,0.00021643,2]
[326624994,1715158256598,-500.0,0.00021643,2]
[326624995,1715158256607,-655.21,0.00021643,2]
[326624996,1715158256617,-500.0,0.00021643,2]
[326624997,1715158256628,-500.0,0.00021643,2]
[326624998,1715158256638,-3356.41,0.00021643,2]
[326624999,1715158256648,-276.3,0.00021643,2]
[326625000,1715158256657,-500.0,0.00021643,2]
[326625001,1715158256666,-4591.04,0.00021643,2]
[326625002,1715158256675,-715.62,0.00021643,2]
[326625003,1715158256684,-989.93,0.00021643,2]
[326625004,1715158256694,-500.0,0.00021643,2]
[326625005,1715158256703,-753.3,0.00021643,2]
[326625006,1715158256712,-793.86,0.00021643,2]
[326625007,1715158256723,-500.0,0.00021643,2]
[326625008,1715158256733,-310.89506135,0.00021643,2]
[326625009,1715158256742,-500.0,0.00021917,2]
[326625010,1715158256751,-500.0,0.00021917,2]
[326625011,1715158256760,-655.21,0.00021917,2]
[326625012,1715158256769,-500.0,0.00021917,2]
[326625013,1715158256779,-500.0,0.00021917,2]
[326625014,1715158256788,-3356.41,0.00021917,2]
[326625015,1715158256797,-300.0,0.00021917,2]
[326625016,1715158256806,-300.0,0.00021917,2]
[326625017,1715158256816,-300.0,0.00021917,2]
[326625018,1715158256825,-300.0,0.00021917,2]
[326625019,1715158256834,-300.0,0.00021917,2]
[326625020,1715158256846,-300.0,0.00021917,2]
[326625021,1715158256856,-300.0,0.00021917,2]
[326625022,1715158256866,-300.0,0.00021917,2]
[326625023,1715158256875,-296.70636236,0.00021917,2]
[326625024,1715158256884,-500.0,0.00021917,2]
[326625025,1715158256893,-4401.06546004,0.00021917,2]
[326625026,1715158535719,-164.562208,0.0001589,2]
[326625027,1715158536239,-2324.62548542,0.00016438,2]
[326625028,1715158536270,-379.96231687,0.00018,2]
[326625029,1715158536302,-604.62485122,0.000185,2]
[326625030,1715158536330,-11479.02811578,0.000189,2]
[326625031,1715158536359,-163.73827254,0.00019076,2]
[326625032,1715158536387,-2000.0,0.00019078,2]
[326625033,1715158536412,-500.0,0.00019178,2]
[326625034,1715158536440,-500.97383024,0.00019178,2]
[326625035,1715158536470,-500.32475912,0.00019178,2]
[326625036,1715158536498,-500.0,0.00019178,2]
[326625037,1715158536526,-500.0,0.00019178,2]
[326625038,1715158536554,-500.0,0.00019178,2]
[326625039,1715158536582,-500.0,0.00019178,2]
[326625040,1715158536612,-500.0,0.00019178,2]
[326625041,1715158536638,-500.0,0.00019178,2]
[326625042,1715158536666,-500.0,0.00019178,2]
[326625043,1715158536695,-500.0,0.00019178,2]
[326625044,1715158536721,-500.0,0.00019178,2]
[326625045,1715158536750,-500.0,0.00019178,2]
[326625046,1715158536776,-500.0,0.00019178,2]
[326625047,1715158536806,-500.0,0.00019178,2]
[326625048,1715158536839,-608.55,0.00019178,2]
[326625049,1715158536866,-500.0,0.00019178,2]
[326625050,1715158536894,-500.0,0.00019178,2]
[326625051,1715158536920,-500.0,0.00019178,2]
[326625052,1715158536949,-500.0,0.00019178,2]
[326625053,1715158536975,-500.0,0.00019178,2]
[326625054,1715158537002,-500.0,0.00019178,2]
[326625055,1715158537028,-500.0,0.00019178,2]
[326625056,1715158537054,-500.0,0.00019178,2]
[326625057,1715158537080,-187.53564853,0.00019178,2]
[326625058,1715158537107,-500.0,0.00019178,2]
[326625059,1715158537133,-500.0,0.00019178,2]
[326625060,1715158537159,-500.0,0.00019178,2]
[326625061,1715158537185,-500.0,0.00019178,2]
[326625062,1715158537216,-500.0,0.00019178,2]
[326625063,1715158537242,-500.0,0.00019178,2]
[326625064,1715158537268,-404.76272805,0.00019178,2]
[326625065,1715158537294,-500.0,0.00019178,2]
[326625066,1715158537324,-834.72,0.00019178,2]
[326625067,1715158537352,-500.0,0.00019178,2]
[326625068,1715158537383,-1158.82,0.00019178,2]
[326625069,1715158537411,-1055.97,0.00019178,2]
[326625070,1715158537437,-1063.92,0.00019178,2]
[326625071,1715158537465,-2089.19,0.00019178,2]
[326625072,1715158537492,-328.55,0.00019178,2]
[326625073,1715158537518,-540.44,0.00019178,2]
[326625074,1715158537549,-500.0,0.00019178,2]
[326625075,1715158537687,-529.61,0.00019178,2]
[326625076,1715158537717,-1001.58,0.00019178,2]
[326625077,1715158537748,-500.0,0.00019178,2]
[326625078,1715158537776,-500.0,0.00019178,2]
[326625079,1715158537805,-2483.09,0.00019178,2]
[326625080,1715158537831,-500.0,0.00019178,2]
[326625081,1715158537857,-500.0,0.00019178,2]
[326625082,1715158537882,-500.0,0.00019328,2]
[326625083,1715158537908,-163.73827253,0.00019351,2]
[326625084,1715158537934,-500.0,0.00019451,2]
[326625085,1715158537962,-500.0,0.00019451,2]
[326625086,1715158537988,-500.0,0.00019451,2]
[326625087,1715158538014,-500.0,0.00019451,2]
[326625088,1715158538040,-500.0,0.00019451,2]
[326625089,1715158538065,-613.74993921,0.00019451,2]
[326625090,1715158538092,-500.0,0.00019451,2]
[326625091,1715158538118,-500.0,0.00019451,2]
[326625092,1715158538143,-500.0,0.00019451,2]
[326625093,1715158538169,-500.0,0.00019451,2]
[326625094,1715158538195,-500.0,0.00019451,2]
[326625095,1715158538223,-500.0,0.00019451,2]
[326625096,1715158538249,-500.0,0.00019451,2]
[326625097,1715158538275,-500.0,0.00019451,2]
[326625098,1715158538302,-500.0,0.00019451,2]
[326625099,1715158538330,-500.0,0.00019451,2]
[326625100,1715158538357,-500.0,0.00019451,2]
[326625101,1715158538384,-328.42824592,0.00019451,2]
[326625102,1715158538410,-500.0,0.00019451,2]
[326625103,1715158538436,-500.0,0.00019451,2]
[326625104,1715158538464,-500.0,0.00019451,2]
[326625105,1715158538493,-500.0,0.00019451,2]
[326625106,1715158538518,-500.0,0.00019452,2]
[326625107,1715158538547,-500.0,0.00019452,2]
[326625108,1715158538572,-500.0,0.00019452,2]
[326625109,1715158538598,-608.55,0.00019452,2]
[326625110,1715158538627,-500.0,0.00019452,2]
[326625111,1715158538654,-500.0,0.00019452,2]
[326625112,1715158538679,-500.0,0.00019452,2]
[326625113,1715158538709,-500.0,0.00019452,2]
[326625114,1715158538735,-500.0,0.00019452,2]
[326625115,1715158538761,-500.0,0.00019452,2]
[326625116,1715158538789,-500.0,0.00019452,2]
[326625117,1715158538816,-500.0,0.00019452,2]
[326625118,1715158538842,-500.0,0.00019452,2]
[326625119,1715158538867,-500.0,0.00019452,2]
[326625120,1715158538892,-500.0,0.00019452,2]
[326625121,1715158538918,-834.72,0.00019452,2]
[326625122,1715158538943,-500.0,0.00019452,2]
[326625123,1715158538972,-1158.82,0.00019452,2]
[326625124,1715158539008,-1055.97,0.00019452,2]
[326625125,1715158539043,-1063.92,0.00019452,2]
[326625126,1715158539073,-2089.19,0.00019452,2]
[326625127,1715158539104,-500.0,0.00019452,2]
[326625128,1715158539134,-540.44,0.00019452,2]
[326625129,1715158539167,-529.61,0.00019452,2]
[326625130,1715158539201,-1001.58,0.00019452,2]
[326625131,1715158539234,-500.0,0.00019452,2]
[326625132,1715158539270,-500.0,0.00019452,2]
[326625133,1715158539301,-2483.09,0.00019452,2]
[326625134,1715158539336,-565.76507937,0.00019452,2]
[326625135,1715158539368,-500.0,0.00019452,2]
[326625136,1715158539399,-163.73827253,0.00019625,2]
[326625137,1715158539428,-500.0,0.00019725,2]
[326625138,1715158539457,-500.0,0.00019726,2]
[326625139,1715158539489,-500.0,0.00019726,2]
[326625140,1715158539521,-500.0,0.00019726,2]
[326625141,1715158539554,-608.55,0.00019726,2]
[326625142,1715158539589,-500.0,0.00019726,2]
[326625143,1715158539623,-500.0,0.00019726,2]
[326625144,1715158539653,-530.40983341,0.00019726,2]
[326625145,1715158539682,-500.0,0.00019726,2]
[326625146,1715158539718,-500.0,0.00019726,2]
[326625147,1715158539750,-500.0,0.00019726,2]
[326625148,1715158539779,-500.0,0.00019726,2]
[326625149,1715158539810,-500.0,0.00019726,2]
[326625150,1715158539840,-500.0,0.00019726,2]
[326625151,1715158539869,-500.0,0.00019726,2]
[326625152,1715158539898,-834.72,0.00019726,2]
[326625153,1715158539926,-500.0,0.00019726,2]
[326625154,1715158539957,-1158.82,0.00019726,2]
[326625155,1715158539988,-1055.97,0.00019726,2]
[326625156,1715158540020,-1063.92,0.00019726,2]
[326625157,1715158540050,-2089.19,0.00019726,2]
[326625158,1715158540090,-500.0,0.00019726,2]
[326625159,1715158540119,-540.44,0.00019726,2]
[326625160,1715158540148,-529.61,0.00019726,2]
[326625161,1715158540178,-1001.58,0.00019726,2]
[326625162,1715158540209,-500.0,0.00019726,2]
[326625163,1715158540239,-500.0,0.00019726,2]
[326625164,1715158540269,-2483.09,0.00019726,2]
[326625165,1715158540299,-163.73827253,0.000199,2]
[326625166,1715158540330,-500.0,0.00019999,2]
[326625167,1715158540361,-500.0,0.00019999,2]
[326625168,1715158540390,-500.0,0.00019999,2]
[326625169,1715158540420,-500.0,0.00019999,2]
[326625170,1715158540451,-456.56177413,0.00019999,2]
[326625171,1715158540481,-500.0,0.0002,2]
[326625172,1715158540515,-464.53869872,0.0002,2]
[326625173,1715158540705,-10494.46027966,0.0002,2]
[326625174,1715158541579,-14234.12683222,0.0002,5]
[326625175,1715158542084,-500.0,0.0002,2]
[326625176,1715158542604,-400.0,0.0002,2]
[326625177,1715158542650,-154.50558214,0.0002,2]
[326625178,1715158542687,-80000.0,0.0002,2]
[326625179,1715158542727,-500.0,0.0002,2]
[326625180,1715158542761,-608.55,0.0002,2]
[326625181,1715158542795,-500.0,0.0002,2]
[326625182,1715158542826,-129572.93196026,0.0002,2]
[326625183,1715158543166,-500.0,0.0002,2]
[326625184,1715158544150,-634.22759211,0.0002,2]
[326625185,1715158544748,-500.0,0.0002,2]
[326625186,1715158545751,-500.0,0.0002,2]
[326625187,1715158545780,-500.0,0.0002,2]
[326625188,1715158545807,-500.0,0.0002,2]
[326625189,1715158545833,-500.0,0.0002,2]
[326625190,1715158545860,-323.39970712,0.0002,2]
[326625191,1715158545887,-500.0,0.0002,2]
[326625192,1715158545913,-834.72,0.0002,2]
[326625193,1715158545939,-500.0,0.0002,2]
[326625194,1715158545969,-1158.82,0.0002,2]
[326625195,1715158545995,-1055.97,0.0002,2]
[326625196,1715158546020,-1063.92,0.0002,2]
[326625197,1715158546049,-2089.19,0.0002,2]
[326625198,1715158546077,-500.0,0.0002,2]
[326625199,1715158546104,-540.44,0.0002,2]
[326625200,1715158546131,-529.61,0.0002,2]
[326625201,1715158546156,-807.0,0.0002,2]
[326625202,1715158546182,-1001.58,0.0002,2]
[326625203,1715158546210,-500.0,0.0002,2]
[326625204,1715158546237,-500.0,0.0002,2]
[326625205,1715158546266,-2483.09,0.0002,2]
[326625206,1715158546292,-500.0,0.00020272,2]
[326625207,1715158546319,-500.0,0.00020273,2]
[326625208,1715158546347,-500.0,0.00020273,2]
[326625209,1715158546374,-500.0,0.00020273,2]
[326625210,1715158546401,-608.55,0.00020273,2]
[326625211,1715158546427,-500.0,0.00020273,2]
[326625212,1715158546454,-500.0,0.00020273,2]
[326625213,1715158546481,-500.0,0.00020273,2]
[326625214,1715158546511,-500.0,0.00020273,2]
[326625215,1715158546538,-500.0,0.00020273,2]
[326625216,1715158546564,-500.0,0.00020273,2]
[326625217,1715158546595,-500.0,0.00020273,2]
[326625218,1715158546626,-500.0,0.00020273,2]
[326625219,1715158546655,-834.72,0.00020273,2]
[326625220,1715158546681,-500.0,0.00020273,2]
[326625221,1715158546710,-1158.82,0.00020273,2]
[326625222,1715158546737,-1055.97,0.00020273,2]
[326625223,1715158546763,-1063.92,0.00020273,2]
[326625224,1715158546791,-2089.19,0.00020273,2]
[326625225,1715158546818,-500.0,0.00020273,2]
[326625226,1715158546845,-540.44,0.00020273,2]